bitfinex/quotes_ETHUSD_20250107
["timestamp","ask_amount","ask_price","bid_price","bid_amount"]
[1736281586219,0.6523,3379.2,3378.2,0.0075]
[1736281586423,0.42414327,3379.5,3378.5,2.96736]
[1736281586723,3.38315327,3379.5,3378.5,0.0075]
[1736281586923,0.85266986,3379.4,3378.3,2.96748]
[1736281587153,0.55,3379.3,3378.5,0.0075]
[1736281587540,6.39308699,3379.5,3378.5,0.0075]
[1736281587741,2.95881,3379.8,3378.9,0.0075]
[1736281587943,3.43407699,3379.9,3378.9,0.0075]
[1736281588173,3.0,3379.8,3378.9,0.0075]
[1736281588381,3.43407699,3379.1,3378.0,2.96032]
[1736281588587,3.43407699,3378.7,3377.6,0.8273]
[1736281588880,3.43407699,3378.7,3377.7,2.99010162]
[1736281589077,3.43407699,3378.7,3378.0,0.0075]
[1736281589274,3.43407699,3378.7,3378.0,0.03709987]
[1736281589475,3.43407699,3378.7,3378.0,0.0075]
[1736281589986,4.12845569,3378.7,3377.8,0.0075]
[1736281590687,0.6943787,3378.7,3377.9,2.96787]
[1736281590975,3.0,3379.0,3378.2,0.0075]
[1736281591141,3.43407699,3379.1,3378.2,0.0075]
[1736281591750,0.55,3379.2,3378.3,0.0075]
[1736281591988,0.55,3379.2,3378.5,0.0075]
[1736281592139,1.3095657,3379.2,3378.5,0.0075]
[1736281592895,3.6523,3379.4,3378.5,2.96739]
[1736281593092,0.55,3379.3,3378.5,0.0075]
[1736281593444,3.50923,3379.3,3378.5,0.0075]
[1736281593674,0.55,3379.3,3378.5,0.0075]
[1736281594290,0.6523,3379.4,3378.5,0.03709752]
[1736281594476,3.0,3379.6,3378.5,2.95988]
[1736281594658,4.0045297,3379.6,3378.6,0.0075]
[1736281594856,0.6523,3379.7,3378.9,0.0075]
[1736281595062,2.95903,3379.5,3378.4,3.71756]
[1736281595311,2.95903,3379.5,3378.6,0.0075]
[1736281595462,0.55,3379.4,3378.6,0.0075]
[1736281595664,2.95929,3379.2,3378.6,0.0075]
[1736281595863,8.87839,3379.2,3378.5,0.0075]
[1736281596190,5.9191,3379.2,3378.5,0.0075]
[1736281599892,9.766289,3379.2,3378.5,0.0075]
[1736281600484,0.55,3378.9,3377.9,3.77719]
[1736281600688,6.4691,3378.9,3377.9,0.8168]
[1736281600849,0.55,3378.8,3377.9,0.8168]
[1736281601202,6.4691,3378.8,3378.0,0.0075]
[1736281601715,7.045381,3378.8,3377.9,0.8168]
[1736281601870,7.045381,3378.8,3377.6,0.8168]
[1736281601871,2.96003,3378.4,3377.6,0.8168]
[1736281602198,5.9191,3378.4,3377.7,0.0075]
[1736281603497,5.9116,3378.4,3378.3,2.96756]
[1736281603654,5.9116,3378.4,3378.3,3.346766]
[1736281604186,5.9116,3378.4,3378.3,0.0075]
[1736281604546,5.9116,3378.4,3378.3,2.96756]
[1736281604806,5.9116,3378.4,3378.3,7.04366]
[1736281606687,5.9041,3378.4,3378.3,7.04366]
[1736281606865,3.71545,3380.4,3379.4,2.95904]
[1736281607053,3.25839,3380.3,3379.5,0.7733]
[1736281607269,0.3,3380.3,3379.7,0.0075]
[1736281607452,0.7572,3380.7,3380.0,0.0075]
[1736281607970,3.71519,3380.7,3380.0,0.0075]
[1736281608357,2.95781,3380.9,3380.0,0.0075]
[1736281608588,0.8194,3381.1,3380.3,0.0075]
[1736281609051,0.7518,3381.4,3380.2,2.9659]
[1736281609252,1.122699,3381.4,3380.4,0.7707]
[1736281609503,0.370899,3381.4,3380.6,0.0075]
[1736281609653,2.95709,3381.7,3380.4,2.95822]
[1736281609853,2.95709,3381.7,3380.7,0.771]
[1736281610089,2.95709,3381.7,3380.8,0.0075]
[1736281610268,0.55,3381.6,3380.8,0.0075]
[1736281610690,2.95709,3381.7,3380.8,0.03707764]
[1736281610928,0.295709,3381.6,3380.8,0.03707764]
[1736281611071,0.295709,3381.6,3380.8,0.0075]
[1736281612309,2.95734,3381.5,3380.8,0.0075]
[1736281612495,0.55,3381.2,3380.3,0.7721]
[1736281612672,2.95773,3381.0,3380.3,0.7721]
[1736281612868,3.308503,3381.0,3380.3,0.7721]
[1736281613174,0.350773,3381.0,3380.4,0.0075]
[1736281613381,2.95737,3381.4,3380.4,0.03708036]
[1736281613575,0.295709,3381.6,3380.6,0.0075]
[1736281613781,2.95717,3381.7,3380.8,0.0075]
[1736281613982,2.95717,3381.7,3380.8,0.03707564]
[1736281614322,2.9572,3381.6,3380.8,0.0075]
[1736281614524,3.25292,3381.6,3380.8,0.0075]
[1736281615074,0.29572,3381.6,3380.8,0.0075]
[1736281615326,0.751,3382.1,3380.8,0.0075]
[1736281615327,2.9573,3381.5,3380.8,0.0075]
[1736281615571,2.95744,3381.3,3380.8,0.0075]
[1736281616515,0.55,3381.5,3380.8,0.0075]
[1736281616716,3.55,3381.6,3380.8,0.0075]
[1736281616961,2.95749,3381.3,3380.8,0.0075]
[1736281617266,0.295749,3381.2,3380.3,0.7926]
[1736281617429,0.55,3381.0,3380.3,0.7926]
[1736281617629,0.55,3380.9,3380.3,0.7926]
[1736281617848,2.95788,3380.8,3379.7,3.75135]
[1736281618048,8.87318,3380.8,3379.8,3.0]
[1736281618460,5.9153,3380.8,3379.9,0.0075]
[1736281618672,5.9153,3380.8,3380.2,0.8089]
[1736281619257,9.760493,3380.8,3380.2,0.8089]
[1736281619910,0.55,3380.7,3379.8,0.7525]
[1736281620110,3.98407699,3380.3,3379.0,0.7525]
[1736281620459,2.95874,3379.9,3379.0,0.7525]
[1736281620750,8.87404,3379.9,3379.0,0.7525]
[1736281620953,6.492107,3379.9,3379.0,0.7525]
[1736281621121,2.95887,3379.7,3379.0,0.7525]
[1736281621457,5.9153,3379.7,3379.1,0.0075]
[1736281621777,5.9153,3379.7,3379.0,0.7525]
[1736281622293,8.87414,3379.7,3379.1,0.0075]
[1736281622598,9.761443,3379.7,3379.1,0.0075]
[1736281623110,6.802603,3379.7,3379.0,0.7525]
[1736281623253,9.761483,3379.7,3378.3,2.96005]
[1736281623462,2.95928,3379.2,3378.4,0.7682]
[1736281623792,2.95957,3378.9,3378.4,0.7682]
[1736281623993,6.492107,3378.9,3378.4,0.7682]
[1736281624137,8.87485,3378.9,3378.4,0.7682]
[1736281624501,5.9078,3378.9,3378.5,0.03709977]
[1736281624868,5.9078,3378.9,3378.7,0.0075]
[1736281625197,5.9078,3378.9,3378.8,0.0075]
[1736281625545,5.9078,3378.9,3378.8,35.0075]
[1736281627095,5.9003,3378.9,3378.8,40.08645037]
[1736281628242,4.42053,3378.9,3378.8,43.87725037]
[1736281628443,1.80007601,3381.2,3379.9,3.75693]
[1736281628444,0.8328,3381.1,3379.9,3.75693]
[1736281628701,0.8328,3381.1,3380.1,0.0075]
[1736281628702,3.79043,3381.1,3380.1,0.0075]
[1736281628852,0.49904807,3381.0,3380.1,0.0075]
[1736281629049,0.49904807,3381.0,3380.0,0.02958354]
[1736281629451,0.49904807,3381.0,3380.2,2.95836]
[1736281629698,2.95747,3381.3,3380.2,2.95836]
[1736281630174,2.95755,3381.2,3380.2,2.95836]
[1736281630381,2.95755,3381.2,3380.2,2.9879404]
[1736281630750,3.79015,3381.4,3380.4,2.9582]
[1736281631101,3.79015,3381.4,3380.5,0.0075]
[1736281631282,0.55,3381.3,3380.5,0.0075]
[1736281631606,0.55,3381.3,3380.3,0.7787]
[1736281631745,2.95813,3380.6,3379.9,0.7711]
[1736281631945,0.55,3380.9,3379.9,0.7711]
[1736281632198,3.43407699,3381.2,3379.9,0.7711]
[1736281632199,2.95839,3380.3,3379.9,0.7711]
[1736281632791,2.9586,3380.0,3379.5,0.7584]
[1736281633161,2.9586,3380.0,3379.6,0.0075]
[1736281633358,2.9586,3380.0,3379.5,0.7584]
[1736281633768,3.50837,3380.3,3379.1,1.0234]
[1736281633983,2.95872,3379.9,3379.1,1.0234]
[1736281634365,0.55,3379.9,3379.1,1.0234]
[1736281634757,2.95877,3379.8,3379.2,0.0075]
[1736281634950,0.7612,3380.0,3379.1,1.0234]
[1736281635147,3.71978,3380.0,3379.2,0.0075]
[1736281635405,2.95867,3379.9,3379.2,0.0075]
[1736281635906,2.95891,3379.7,3379.2,0.0075]
[1736281636114,0.4112037,3380.0,3378.7,0.7561]
[1736281636115,3.84528069,3380.0,3378.7,0.7561]
[1736281636269,2.95911,3379.4,3378.7,0.7561]
[1736281636823,0.55,3379.8,3378.7,0.7561]
[1736281636959,2.9592,3379.3,3378.7,0.7561]
[1736281637155,2.95952,3379.0,3378.3,0.7734]
[1736281637487,2.95952,3379.0,3378.4,0.0075]
[1736281637811,2.95957,3378.9,3378.4,0.0075]
[1736281637990,2.95957,3378.9,3378.3,0.7734]
[1736281638186,2.95957,3378.9,3378.4,0.0075]
[1736281638813,0.295957,3378.9,3377.7,0.804]
[1736281638993,3.55,3379.1,3377.7,0.804]
[1736281639196,2.96016,3378.2,3377.7,0.804]
[1736281639358,2.96027,3378.1,3377.7,0.804]
[1736281639705,2.96002,3378.4,3377.4,2.04189866]
[1736281640010,2.95961,3378.9,3377.7,0.7908]
[1736281640170,2.95961,3378.9,3377.8,2.8686894]
[1736281640369,3.72178,3379.1,3377.9,2.9604]
[1736281640631,3.72178,3379.1,3378.1,0.0075]
[1736281640882,3.72178,3379.1,3378.1,35.0075]
[1736281641082,3.72178,3379.1,3378.1,0.0075]
[1736281641455,0.7624,3379.1,3378.1,0.0075]
[1736281641653,2.95948,3379.0,3378.3,0.0075]
[1736281641884,2.95998,3378.5,3378.3,0.0075]
[1736281642193,0.55,3379.0,3377.7,0.7908]
[1736281642396,2.95989,3378.6,3377.8,0.0075]
[1736281642767,3.7624,3379.1,3377.7,0.7908]
[1736281642768,0.55,3378.7,3377.7,0.7908]
[1736281642966,2.96025,3378.1,3377.4,1.0539]
[1736281643658,2.96025,3378.1,3377.5,0.0075]
[1736281644058,2.95988,3378.6,3377.5,2.96819]
[1736281644296,2.95948,3379.0,3377.5,0.0075]
[1736281644502,2.96015,3378.2,3377.5,0.0075]
[1736281644704,2.96015,3378.2,3377.7,0.0075]
[1736281644705,5.9202,3378.2,3377.7,0.0075]
[1736281644919,2.96024,3378.1,3377.7,0.0075]
[1736281645419,2.96024,3378.1,3377.5,0.0075]
[1736281645571,5.9202,3378.2,3377.5,0.0075]
[1736281645778,5.9127,3378.2,3377.5,0.0075]
[1736281645979,5.9127,3378.2,3378.0,0.8241]
[1736281646179,5.9127,3378.2,3378.1,35.0075]
[1736281646378,5.9127,3378.2,3378.1,40.8289294]
[1736281647467,5.9052,3378.2,3378.1,44.6124294]
[1736281649212,2.95899,3379.6,3378.6,0.0075]
[1736281649416,0.55,3379.7,3378.6,0.0075]
[1736281649570,2.95895,3379.6,3378.6,0.03709633]
[1736281649912,2.95853,3380.1,3379.2,0.0075]
[1736281650111,3.78209,3380.3,3379.3,0.304186]
[1736281650408,0.8237,3380.7,3380.0,0.0075]
[1736281650564,1.20005067,3380.9,3380.1,0.0075]
[1736281650978,4.15786067,3380.9,3380.1,0.0075]
[1736281651270,2.95762,3381.1,3380.1,0.0075]
[1736281651469,2.95771,3381.0,3380.1,0.0075]
[1736281651772,0.378132,3381.1,3380.4,0.0075]
[1736281652407,2.95738,3381.4,3380.2,0.03708023]
[1736281652590,2.02375067,3381.6,3380.7,0.0075]
[1736281652591,1.20005067,3381.6,3380.7,0.0075]
[1736281652919,0.8237,3382.0,3380.7,0.0075]
[1736281653123,1.13878281,3381.9,3380.7,0.0075]
[1736281653426,1.13878281,3381.9,3380.4,0.03708015]
[1736281653427,2.95711,3381.7,3380.4,0.03708015]
[1736281653631,3.50272277,3381.9,3380.9,0.0075]
[1736281653780,3.0,3381.8,3381.1,0.0075]
[1736281653982,0.54578277,3381.9,3381.1,0.0075]
[1736281654294,2.957,3381.9,3381.1,0.0075]
[1736281655596,2.95701,3381.8,3381.1,0.0075]
[1736281655801,0.55,3382.2,3381.1,0.0075]
[1736281656114,2.95735,3381.4,3381.1,0.0075]
[1736281656297,2.95695,3381.9,3381.1,0.0075]
[1736281656497,2.95701,3381.8,3381.1,0.0075]
[1736281657486,0.295695,3381.9,3381.1,0.0075]
[1736281658028,2.00745067,3383.0,3381.6,0.0075]
[1736281658181,2.00745067,3383.0,3381.8,0.0075]
[1736281658386,2.00745067,3383.0,3381.8,0.30106654]
[1736281659543,2.95614,3382.8,3381.8,0.30106654]
[1736281659713,0.8159,3383.4,3382.0,0.793]
[1736281659915,2.95562,3383.4,3382.3,0.0075]
[1736281660115,2.95582,3383.2,3382.3,0.0075]
[1736281660312,2.95582,3383.2,3382.2,0.0075]
[1736281660512,2.95606,3382.9,3382.2,0.0075]
[1736281660801,0.55,3383.0,3382.2,0.0075]
[1736281661004,0.19198,3382.9,3382.0,0.7855]
[1736281661204,2.95656,3382.4,3382.0,0.7855]
[1736281661536,2.95656,3382.4,3382.1,0.0075]
[1736281661851,3.19198,3382.9,3382.1,0.0075]
[1736281662031,0.19198,3382.9,3382.1,0.0075]
[1736281662339,2.95613,3382.8,3382.1,0.0075]
[1736281663149,0.8198,3383.1,3382.1,0.0075]
[1736281663343,2.95622,3382.7,3382.1,0.0075]
[1736281663728,2.95635,3382.6,3382.1,0.0075]
[1736281665012,2.9556,3383.5,3382.1,0.03706637]
[1736281665348,2.95568,3383.4,3382.4,0.0075]
[1736281665544,2.95568,3383.4,3382.6,0.0075]
[1736281665769,2.9557,3383.3,3382.6,0.0075]
[1736281667216,3.0,3383.4,3382.6,0.0075]
[1736281667420,0.625107,3383.4,3382.6,0.0075]
[1736281667663,2.95561,3383.4,3382.6,0.0075]
[1736281668360,0.29555,3383.5,3382.6,0.0075]
[1736281668566,2.9556,3383.4,3382.6,0.0075]
[1736281668734,2.95594,3383.1,3382.6,0.0075]
[1736281669059,2.95572,3383.3,3382.6,0.0075]
[1736281669921,2.95546,3383.6,3382.6,0.0075]
[1736281670124,2.95546,3383.6,3382.8,0.0075]
[1736281670678,0.55,3383.7,3382.7,0.0075]
[1736281670958,3.02654338,3383.5,3382.7,0.0075]
[1736281671159,2.95589,3383.1,3382.5,0.7545]
[1736281671561,0.02775911,3383.0,3382.6,0.0075]
[1736281671752,2.95589,3383.1,3382.6,0.0075]
[1736281672071,0.02775911,3382.9,3382.6,0.0075]
[1736281672563,0.02775911,3382.8,3382.6,0.0075]
[1736281672963,0.02775911,3382.8,3382.0,2.95674]
[1736281672964,0.8033,3383.0,3381.7,0.7613]
[1736281673169,0.02775911,3382.7,3381.7,0.7613]
[1736281673383,3.0,3382.7,3381.7,0.7613]
[1736281673526,2.95658,3382.3,3381.7,0.7613]
[1736281673728,0.02765344,3382.6,3381.7,0.7613]
[1736281673938,2.95633,3382.6,3381.8,0.0075]
[1736281674165,0.02765344,3382.5,3381.8,0.0075]
[1736281674527,2.95648,3382.4,3381.8,0.0075]
[1736281674734,0.02765344,3382.4,3381.8,0.0075]
[1736281675245,2.95643,3382.5,3381.8,0.0075]
[1736281675444,0.02765344,3382.3,3381.8,0.0075]
[1736281675643,2.95643,3382.5,3381.8,0.0075]
[1736281675972,3.4404603,3382.5,3381.8,0.0075]
[1736281676171,0.02765344,3382.4,3381.8,0.0075]
[1736281676353,2.98415344,3382.4,3381.8,0.0075]
[1736281676889,0.02765344,3382.4,3381.8,0.0075]
[1736281677170,0.02765344,3382.4,3382.0,0.8194]
[1736281677358,0.02765344,3382.4,3382.1,0.38884687]
[1736281677543,2.95595,3383.0,3382.1,2.96424]
[1736281677882,4.22167699,3384.0,3382.2,0.8194]
[1736281678029,2.95623,3382.7,3382.2,0.8194]
[1736281678426,0.02765344,3382.6,3382.3,0.0075]
[1736281679025,2.95608,3382.9,3382.3,0.0075]
[1736281679577,0.02765344,3382.8,3382.3,0.0075]
[1736281680466,2.98380344,3382.8,3382.3,0.0075]
[1736281681277,0.02765344,3382.8,3382.3,0.0075]
[1736281681483,2.95562,3383.4,3382.5,0.0075]
[1736281681632,2.95562,3383.4,3382.5,0.38329545]
[1736281681633,0.02765344,3382.7,3382.5,0.38329545]
[1736281681834,0.828,3384.0,3382.6,0.79396173]
[1736281682049,2.95543,3383.6,3382.7,0.0075]
[1736281682233,0.02753268,3383.5,3382.7,0.0075]
[1736281682449,0.02753268,3383.5,3382.9,0.0075]
[1736281682830,2.95527,3383.8,3382.9,0.0075]
[1736281683036,0.02753268,3383.4,3382.9,0.0075]
[1736281683230,2.9555,3383.6,3382.9,0.0075]
[1736281683471,2.95595,3383.0,3382.9,0.0075]
[1736281683673,2.9556,3383.4,3382.5,0.264]
[1736281683991,2.9563,3382.6,3382.5,0.264]
[1736281684283,2.95664,3382.3,3382.1,0.808]
[1736281684434,0.02785718,3382.6,3381.2,0.808]
[1736281684785,2.95731,3381.5,3381.2,0.808]
[1736281684981,2.95736,3381.4,3381.2,0.808]
[1736281685345,0.02770626,3381.3,3381.2,0.808]
[1736281685552,2.98514626,3381.3,3381.2,0.808]
[1736281685764,0.02770626,3381.3,3381.2,0.808]
[1736281686009,2.95728,3381.5,3381.2,0.808]
[1736281686318,2.95791,3380.8,3380.3,1.0451]
[1736281686472,2.95791,3380.8,3380.3,0.7821]
[1736281686668,3.43407699,3381.2,3380.3,0.7821]
[1736281686926,2.95788,3380.8,3380.3,0.7821]
[1736281687121,2.9578,3380.9,3380.4,0.0075]
[1736281687335,0.7666,3381.4,3380.3,0.7821]
[1736281687471,2.95765,3381.1,3380.3,0.7821]
[1736281688369,2.95765,3381.1,3380.4,0.0075]
[1736281688574,3.77168,3381.8,3380.4,0.03708051]
[1736281688803,3.69707699,3382.0,3380.6,0.0075]
[1736281688804,0.59434413,3382.0,3380.6,0.0075]
[1736281689027,2.95708,3381.8,3380.8,0.813]
[1736281689326,2.95711,3381.7,3381.0,0.0075]
[1736281689471,2.95753,3381.2,3381.0,0.0075]
[1736281689673,2.95713,3381.7,3380.8,0.8055]
[1736281689921,0.55,3381.6,3380.6,0.263]
[1736281690219,2.95785,3380.9,3380.4,0.8156]
[1736281690791,0.7855,3381.4,3380.5,0.0075]
[1736281691022,2.95725,3381.6,3380.5,0.0075]
[1736281691322,2.95725,3381.6,3380.7,0.0075]
[1736281691624,2.95691,3381.9,3380.9,0.0075]
[1736281691979,2.9573,3381.5,3380.9,0.0075]
[1736281692236,0.7855,3381.7,3379.6,0.8156]
[1736281692377,0.55,3380.8,3379.6,0.8156]
[1736281692582,2.95843,3380.2,3379.6,0.8156]
[1736281692886,2.9585,3380.1,3379.6,0.8156]
[1736281693518,2.9586,3380.0,3379.7,0.0075]
[1736281694006,2.95814,3380.5,3379.7,0.0075]
[1736281694211,2.95838,3380.3,3379.7,0.0075]
[1736281694373,2.95841,3380.2,3379.7,0.0075]
[1736281694811,1.141655,3380.2,3379.6,0.8156]
[1736281694975,0.591655,3380.2,3379.6,0.8156]
[1736281695172,2.95831,3380.4,3379.7,0.0075]
[1736281695392,2.95824,3380.4,3379.7,0.0075]
[1736281695815,2.95835,3380.3,3379.7,0.0075]
[1736281696911,2.95842,3380.2,3379.7,0.0075]
[1736281698017,0.55,3380.6,3379.7,0.0075]
[1736281698334,0.8194,3381.1,3379.5,0.0075]
[1736281698617,2.95769,3381.1,3380.2,0.0075]
[1736281698975,2.95767,3381.1,3380.2,0.0075]
[1736281699318,2.95777,3381.0,3380.2,0.0075]
[1736281699613,2.95806,3380.6,3380.2,0.0075]
[1736281699791,3.50749,3381.3,3380.2,0.0075]
[1736281699980,2.95831,3380.3,3380.2,0.0075]
[1736281700176,2.95866,3379.9,3379.7,0.8049]
[1736281700373,3.43407699,3379.9,3379.3,0.79561532]
[1736281700617,2.95909,3379.5,3379.3,0.79561532]
[1736281700961,2.95887,3379.7,3379.4,0.0075]
[1736281701413,2.95868,3379.9,3379.3,0.03441532]
[1736281701579,2.95892,3379.7,3379.3,0.03441532]
[1736281701776,2.95902,3379.5,3379.3,0.03441532]
[1736281702215,2.95902,3379.5,3379.4,0.0075]
[1736281703607,4.10582499,3379.9,3379.4,0.0075]
[1736281703822,3.7588,3380.2,3379.4,0.0075]
[1736281704023,5.95847,3380.2,3379.6,0.0075]
[1736281704179,3.0,3380.2,3379.6,0.0075]
[1736281704379,2.95849,3380.1,3379.6,0.0075]
[1736281704579,2.95857,3380.0,3379.6,0.0075]
[1736281704995,2.95849,3380.1,3379.6,0.0075]
[1736281705207,0.8145,3380.6,3379.6,0.0075]
[1736281705406,2.95831,3380.4,3379.6,0.0075]
[1736281705619,2.95834,3380.3,3379.6,0.0075]
[1736281705992,2.95815,3380.5,3379.6,0.0075]
[1736281706298,3.7206537,3380.6,3379.6,0.0075]
[1736281706299,6.6787537,3380.6,3379.6,0.0075]
[1736281706512,2.95834,3380.3,3379.6,0.0075]
[1736281706711,2.95841,3380.2,3379.6,0.0075]
[1736281706921,2.95852,3380.1,3379.6,0.0075]
[1736281707123,3.7206537,3380.6,3379.6,0.0075]
[1736281707326,2.95832,3380.3,3379.6,0.0075]
[1736281707935,2.95814,3380.5,3379.6,0.0075]
[1736281708797,2.95799,3380.7,3380.0,0.0075]
[1736281709342,3.0,3381.0,3380.0,0.0075]
[1736281709837,2.95812,3380.6,3380.0,0.0075]
[1736281710193,2.95812,3380.6,3379.9,0.8343]
[1736281710194,0.295812,3380.6,3379.9,0.8343]
[1736281710400,2.95832,3380.3,3379.9,0.8343]
[1736281710612,6.39208699,3380.7,3379.9,0.8343]
[1736281711000,3.43407699,3380.7,3380.0,0.0075]
[1736281711203,2.9582,3380.5,3380.0,0.0075]
[1736281711532,3.43407699,3380.7,3380.0,0.0075]
[1736281711739,3.0,3381.0,3380.0,0.0075]
[1736281711934,3.78160496,3381.0,3380.0,0.0075]
[1736281712279,2.95815,3380.5,3380.0,0.0075]
[1736281712560,2.95796,3380.7,3380.0,0.0075]
[1736281712716,2.95781,3380.9,3380.3,0.0075]
[1736281712919,2.9579,3380.8,3380.3,0.0075]
[1736281713752,2.95813,3380.6,3380.3,0.0075]
[1736281713919,2.95803,3380.7,3379.6,0.263]
[1736281714250,2.95813,3380.6,3379.7,0.0075]
[1736281714399,0.55,3380.6,3379.6,0.263]
[1736281714596,3.55,3380.6,3379.6,0.263]
[1736281714803,3.55,3380.6,3379.4,0.7669]
[1736281715006,2.95901,3379.5,3379.3,0.03441532]
[1736281715252,2.9591,3379.4,3379.3,0.03441532]
[1736281715423,2.95967,3378.8,3378.6,0.778]
[1736281715822,2.95971,3378.7,3378.6,0.778]
[1736281716174,2.9598,3378.7,3378.0,0.778]
[1736281716343,2.9598,3378.7,3378.0,1.24240659]
[1736281716695,2.9598,3378.7,3378.0,0.778]
[1736281717185,3.79346,3379.4,3378.1,0.0075]
[1736281717392,2.95948,3379.0,3378.1,0.0075]
[1736281719096,2.95948,3379.0,3378.1,2.96774]
[1736281719704,2.95931,3379.2,3378.3,0.0075]
[1736281719997,2.95945,3379.1,3378.3,0.38502096]
[1736281720213,0.8343,3379.4,3378.3,0.0075]
[1736281720650,2.959,3379.6,3378.6,0.7705]
[1736281720852,2.959,3379.6,3378.7,2.96721]
[1736281721099,3.8264,3380.1,3378.7,0.0075]
[1736281721264,2.95944,3379.1,3378.7,0.0075]
[1736281721679,2.95957,3378.9,3378.6,0.7705]
[1736281722079,2.95957,3378.9,3378.7,0.0075]
[1736281722860,3.255384,3379.1,3378.7,0.0075]
[1736281723985,0.295944,3379.1,3378.7,0.0075]
[1736281724159,2.95923,3379.3,3378.7,0.0075]
[1736281724968,2.95929,3379.2,3378.7,0.0075]
[1736281726206,3.55,3379.5,3378.7,0.0075]
[1736281726403,0.55,3379.3,3378.7,0.0075]
[1736281726565,2.95937,3379.1,3378.7,0.0075]
[1736281726767,3.606217,3379.1,3378.7,0.0075]
[1736281727109,2.95949,3379.0,3378.7,0.0075]
[1736281728305,0.55,3379.3,3378.7,0.0075]
[1736281728306,3.0,3379.5,3378.7,0.0075]
[1736281728467,2.95909,3379.5,3378.7,0.0075]
[1736281728667,0.8264,3379.7,3378.7,0.0075]
[1736281728668,2.95887,3379.7,3378.7,2.96721]
[1736281728993,2.9587,3379.9,3379.1,0.0075]
[1736281729306,2.95886,3379.7,3379.1,0.0075]
[1736281730164,0.55,3379.8,3379.1,0.0075]
[1736281730364,2.95952,3379.0,3378.3,0.8186]
[1736281730578,2.95961,3378.9,3378.3,0.8186]
[1736281730809,3.50923,3379.3,3378.3,0.8186]
[1736281730810,2.95963,3378.8,3378.3,0.8186]
[1736281731305,0.55,3379.3,3378.4,0.0075]
[1736281731306,2.95949,3379.0,3378.4,0.0075]
[1736281731609,2.95965,3378.8,3378.3,0.8186]
[1736281731908,3.310429,3379.0,3378.3,0.8186]
[1736281732111,3.310429,3379.0,3378.4,0.0075]
[1736281732318,2.95929,3379.2,3378.4,0.0075]
[1736281733210,2.95893,3379.6,3378.6,2.96728]
[1736281733385,2.95899,3379.6,3378.8,0.0075]
[1736281733714,0.772,3379.9,3378.8,0.0075]
[1736281734020,2.95886,3379.7,3378.8,0.8261]
[1736281734389,2.95868,3379.9,3379.0,0.0075]
[1736281734711,1.20005067,3380.2,3379.5,0.7802]
[1736281734958,2.95833,3380.3,3379.5,0.7802]
[1736281735243,2.95855,3380.1,3379.5,0.7802]
[1736281735448,2.95861,3380.0,3379.5,0.7802]
[1736281735948,0.295861,3380.0,3379.5,0.7802]
[1736281736126,2.9587,3379.9,3379.5,0.7802]
[1736281736308,2.95885,3379.7,3379.5,0.7802]
[1736281736506,2.95889,3379.7,3379.5,0.7802]
[1736281738519,2.95869,3379.9,3379.5,0.7802]
[1736281738952,2.95856,3380.1,3379.5,0.7802]
[1736281739245,1.20005067,3380.6,3379.5,0.7802]
[1736281739444,2.95823,3380.4,3379.5,0.7802]
[1736281740146,0.59580867,3380.5,3379.5,0.7802]
[1736281740452,3.55399867,3380.5,3379.5,0.7802]
[1736281740653,2.95819,3380.5,3379.5,0.7802]
[1736281741012,2.9584,3380.3,3379.5,0.7802]
[1736281741221,2.95849,3380.1,3379.5,0.7802]
[1736281741424,0.55,3380.6,3379.5,0.7802]
[1736281741713,2.95832,3380.3,3379.5,0.7802]
[1736281742047,2.9584,3380.2,3379.5,0.7802]
[1736281742402,2.95796,3380.7,3379.5,0.7802]
[1736281742403,2.95813,3380.6,3379.5,0.7802]
[1736281742608,2.9583,3380.4,3379.5,0.7802]
[1736281742923,2.95835,3380.3,3379.5,0.7802]
[1736281743411,2.95825,3380.4,3379.5,0.7802]
[1736281743609,0.73253282,3380.6,3379.5,0.7802]
[1736281743864,2.95851,3380.1,3379.5,0.7802]
[1736281744621,0.295851,3380.1,3379.5,0.7727]
[1736281744821,0.295851,3380.1,3378.9,1.22149326]
[1736281744822,2.95928,3379.2,3378.9,1.22149326]
[1736281745020,2.95893,3379.6,3378.8,1.98659326]
[1736281745021,0.55,3379.6,3378.8,1.98659326]
[1736281745247,2.95954,3378.9,3378.8,1.98659326]
[1736281745551,2.95954,3378.9,3378.8,1.22149326]
[1736281746418,3.39526618,3378.9,3378.8,1.22149326]
[1736281746646,2.95981,3378.6,3378.1,0.7989]
[1736281747015,0.43572618,3378.9,3378.2,0.0075]
[1736281747216,2.95974,3378.7,3378.2,0.0075]
[1736281747459,2.95992,3378.5,3378.1,0.7989]
[1736281747770,2.95992,3378.5,3377.8,1.22149326]
[1736281747771,0.55,3378.5,3377.8,1.22149326]
[1736281748054,2.96041,3377.9,3377.5,1.38238266]
[1736281748269,3.256451,3377.9,3377.5,1.38238266]
[1736281748478,6.39584089,3377.6,3377.5,1.38238266]
[1736281748771,9.94584089,3377.6,3377.5,1.38238266]
[1736281749269,9.94584089,3377.6,3377.5,2.66e-06]
[1736281750059,2.9612,3377.0,3376.9,0.07100337]
[1736281751818,2.96105,3377.2,3377.0,0.0075]
[1736281752018,2.96112,3377.1,3377.0,0.0075]
[1736281752654,2.96096,3377.3,3377.0,0.0075]
[1736281752865,2.96041,3378.0,3377.2,0.0075]
[1736281753073,0.8033,3378.2,3377.2,0.0075]
[1736281753074,2.96042,3377.9,3377.2,0.0075]